fUSD/lending_fUSD_20260321
["ID","MTS","AMOUNT","RATE_DAILY","PERIOD"]
[408683862,1774115436053,-500.0,0.00015446,2]
[408683863,1774115436063,-500.0,0.00015446,2]
[408683864,1774115436073,-500.0,0.00015446,2]
[408683865,1774115436083,-500.0,0.00015446,2]
[408683866,1774115436093,-500.0,0.00015446,2]
[408683867,1774115436104,-500.0,0.00015446,2]
[408683868,1774115436114,-500.0,0.00015446,2]
[408683869,1774115436123,-500.0,0.00015446,2]
[408683870,1774115436133,-500.0,0.00015446,2]
[408683871,1774115436143,-500.0,0.00015446,2]
[408683872,1774115436153,-500.0,0.00015446,2]
[408683873,1774115436163,-500.0,0.00015446,2]
[408683874,1774115436173,-405.13912485,0.00015446,2]
[408683875,1774115436183,-500.0,0.00015446,2]
[408683876,1774115436192,-500.0,0.00015446,2]
[408683877,1774115436201,-500.0,0.00015446,2]
[408683878,1774115436211,-150.0,0.00015446,2]
[408683879,1774115436221,-500.0,0.00015446,2]
[408683880,1774115436230,-500.0,0.00015446,2]
[408683881,1774115436239,-500.0,0.00015446,2]
[408683882,1774115436249,-500.0,0.00015446,2]
[408683883,1774115436259,-500.0,0.00015446,2]
[408683884,1774115436270,-500.0,0.00015446,2]
[408683885,1774115436280,-500.0,0.00015446,2]
[408683886,1774115436290,-500.0,0.00015446,2]
[408683887,1774115436299,-500.0,0.00015446,2]
[408683888,1774115436309,-500.0,0.00015446,2]
[408683889,1774115436322,-208.74190005,0.00015446,2]
[408683890,1774115436332,-500.0,0.00015446,2]
[408683891,1774115436342,-500.0,0.00015446,2]
[408683892,1774115436351,-500.0,0.00015446,2]
[408683893,1774115436361,-500.0,0.00015446,2]
[408683894,1774115436372,-500.0,0.00015446,2]
[408683895,1774115436382,-500.0,0.00015446,2]
[408683896,1774115436392,-500.0,0.00015446,2]
[408683897,1774115436403,-538.0,0.00015446,2]
[408683898,1774115436414,-500.0,0.00015446,2]
[408683899,1774115436424,-500.0,0.00015446,2]
[408683900,1774115436434,-150.0,0.00015446,2]
[408683901,1774115436444,-500.0,0.00015446,2]
[408683902,1774115436455,-500.0,0.00015446,2]
[408683903,1774115436464,-500.0,0.00015446,2]
[408683904,1774115436473,-500.0,0.00015446,2]
[408683905,1774115436483,-500.0,0.00015446,2]
[408683906,1774115436494,-500.0,0.00015446,2]
[408683907,1774115436503,-500.0,0.00015446,2]
[408683908,1774115436512,-500.0,0.00015446,2]
[408683909,1774115436522,-500.0,0.00015446,2]
[408683910,1774115436532,-314.39578779,0.00015446,2]
[408683911,1774115436541,-500.0,0.00015446,2]
[408683912,1774115436551,-643.24035249,0.00015446,2]
[408683913,1774115436561,-500.0,0.00015449,2]
[408683914,1774115436570,-500.0,0.00015449,2]
[408683915,1774115436579,-500.0,0.00015449,2]
[408683916,1774115436589,-500.0,0.00015449,2]
[408683917,1774115436598,-500.0,0.00015449,2]
[408683918,1774115436608,-500.0,0.00015449,2]
[408683919,1774115436619,-577.95065984,0.00015449,2]
[408683920,1774115436628,-500.0,0.00015449,2]
[408683921,1774115436640,-500.0,0.00015449,2]
[408683922,1774115436651,-500.0,0.00015449,2]
[408683923,1774115436661,-500.0,0.00015449,2]
[408683924,1774115436671,-500.0,0.00015449,2]
[408683925,1774115436680,-500.0,0.00015449,2]
[408683926,1774115436689,-500.0,0.00015449,2]
[408683927,1774115436698,-500.0,0.00015449,2]
[408683928,1774115436707,-500.0,0.00015449,2]
[408683929,1774115436716,-500.0,0.00015449,2]
[408683930,1774115436725,-500.0,0.00015449,2]
[408683931,1774115436734,-322.02411673,0.00015449,2]
[408683932,1774115436743,-500.0,0.00015449,2]
[408683933,1774115436753,-500.0,0.00015449,2]
[408683934,1774115436763,-500.0,0.00015449,2]
[408683935,1774115436773,-500.0,0.00015449,2]
[408683936,1774115436782,-500.0,0.00015449,2]
[408683937,1774115436792,-500.0,0.00015449,2]
[408683938,1774115436801,-500.0,0.00015449,2]
[408683939,1774115436810,-500.0,0.00015449,2]
[408683940,1774115436818,-500.0,0.00015449,2]
[408683941,1774115436827,-500.0,0.00015449,2]
[408683942,1774115436837,-500.0,0.00015449,2]
[408683943,1774115436846,-500.0,0.00015449,2]
[408683944,1774115436855,-500.0,0.00015449,2]
[408683945,1774115436864,-500.0,0.00015449,2]
[408683946,1774115436873,-500.0,0.00015449,2]
[408683947,1774115436882,-500.0,0.00015449,2]
[408683948,1774115436891,-516.42166311,0.00015449,2]
[408683949,1774115436900,-500.0,0.00015449,2]
[408683950,1774115436909,-500.0,0.00015449,2]
[408683951,1774115436924,-500.0,0.00015449,2]
[408683952,1774115436933,-500.0,0.00015449,2]
[408683953,1774115437065,-500.0,0.00015449,2]
[408683954,1774115437075,-500.0,0.00015449,2]
[408683955,1774115437084,-554.77661707,0.00015449,2]
[408683956,1774115437093,-693.0,0.00015449,2]
[408683957,1774115437102,-693.0,0.00015449,2]
[408683958,1774115437111,-693.0,0.00015449,2]
[408683959,1774115437120,-693.0,0.00015449,2]
[408683960,1774115437129,-693.0,0.00015449,2]
[408683961,1774115437139,-693.0,0.00015449,2]
[408683962,1774115437148,-693.0,0.00015449,2]
[408683963,1774115437157,-693.0,0.00015449,2]
[408683964,1774115437166,-693.0,0.00015449,2]
[408683965,1774115437175,-693.0,0.00015449,2]
[408683966,1774115437185,-693.0,0.00015449,2]
[408683967,1774115437194,-693.0,0.00015449,2]
[408683968,1774115437203,-693.0,0.00015449,2]
[408683969,1774115437213,-693.0,0.00015449,2]
[408683970,1774115437222,-693.0,0.00015449,2]
[408683971,1774115437231,-500.0,0.00015449,2]
[408683972,1774115437241,-693.0,0.00015449,2]
[408683973,1774115437250,-500.0,0.00015449,2]
[408683974,1774115437259,-500.0,0.00015449,2]
[408683975,1774115437268,-500.0,0.00015449,2]
[408683976,1774115437278,-693.0,0.00015449,2]
[408683977,1774115437287,-500.0,0.00015449,2]
[408683978,1774115437296,-500.0,0.00015449,2]
[408683979,1774115437306,-500.0,0.00015449,2]
[408683980,1774115437316,-500.0,0.00015449,2]
[408683981,1774115437325,-693.0,0.00015449,2]
[408683982,1774115437334,-246.79709611,0.00015449,2]
[408683983,1774115437344,-500.0,0.00015449,2]
[408683984,1774115437353,-500.0,0.00015449,2]
[408683985,1774115437362,-500.0,0.00015449,2]
[408683986,1774115437371,-500.0,0.00015449,2]
[408683987,1774115437380,-215.33010556,0.00015449,2]
[408683988,1774115437390,-500.0,0.00015449,2]
[408683989,1774115437399,-500.0,0.00015449,2]
[408683990,1774115437408,-693.0,0.00015449,2]
[408683991,1774115437417,-500.0,0.00015449,2]
[408683992,1774115437427,-500.0,0.00015449,2]
[408683993,1774115437436,-500.0,0.00015449,2]
[408683994,1774115437445,-500.0,0.00015449,2]
[408683995,1774115437455,-500.0,0.00015449,2]
[408683996,1774115437464,-500.0,0.00015449,2]
[408683997,1774115437473,-500.0,0.00015449,2]
[408683998,1774115437483,-256.16426944,0.00015449,2]
[408683999,1774115437492,-500.0,0.00015449,2]
[408684000,1774115437501,-500.0,0.00015449,2]
[408684001,1774115437510,-693.0,0.00015449,2]
[408684002,1774115437519,-500.0,0.00015449,2]
[408684003,1774115437529,-500.0,0.00015449,2]
[408684004,1774115437539,-500.0,0.00015449,2]
[408684005,1774115437549,-500.0,0.00015449,2]
[408684006,1774115437558,-500.0,0.00015449,2]
[408684007,1774115437568,-500.0,0.00015449,2]
[408684008,1774115437576,-500.0,0.00015449,2]
[408684009,1774115437587,-500.0,0.00015449,2]
[408684010,1774115437597,-500.0,0.00015449,2]
[408684011,1774115437607,-500.0,0.00015449,2]
[408684012,1774115437616,-500.0,0.00015449,2]
[408684013,1774115437626,-500.0,0.00015449,2]
[408684014,1774115437636,-500.0,0.00015449,2]
[408684015,1774115437651,-372.33776627,0.00015449,2]
[408684016,1774115437659,-693.0,0.00015449,2]
[408684017,1774115437668,-500.0,0.00015449,2]
[408684018,1774115437677,-500.0,0.00015449,2]
[408684019,1774115437687,-500.0,0.00015449,2]
[408684020,1774115437695,-500.0,0.00015449,2]
[408684021,1774115437705,-693.0,0.00015449,2]
[408684022,1774115437715,-500.0,0.00015449,2]
[408684023,1774115437724,-261.70880193,0.00015449,2]
[408684024,1774115437733,-500.0,0.00015449,2]
[408684025,1774115437742,-500.0,0.00015449,2]
[408684026,1774115437751,-500.0,0.00015449,2]
[408684027,1774115437760,-500.0,0.00015449,2]
[408684028,1774115437770,-500.0,0.00015449,2]
[408684029,1774115437779,-500.0,0.00015449,2]
[408684030,1774115437788,-500.0,0.00015449,2]
[408684031,1774115437798,-500.0,0.00015449,2]
[408684032,1774115437808,-500.0,0.00015449,2]
[408684033,1774115437825,-500.0,0.00015449,2]
[408684034,1774115437834,-500.0,0.00015449,2]
[408684035,1774115437843,-500.0,0.00015449,2]
[408684036,1774115437853,-500.0,0.00015449,2]
[408684037,1774115437864,-693.0,0.00015449,2]
[408684038,1774115437873,-500.0,0.00015449,2]
[408684039,1774115437883,-500.0,0.00015449,2]
[408684040,1774115437895,-500.0,0.00015449,2]
[408684041,1774115437905,-500.0,0.00015449,2]
[408684042,1774115437916,-266.24818512,0.00015449,2]
[408684043,1774115437926,-500.0,0.00015449,2]
[408684044,1774115437936,-500.0,0.00015449,2]
[408684045,1774115437946,-715.0,0.00015449,2]
[408684046,1774115437955,-409.47795526,0.00015449,2]
[408684047,1774115437964,-1631.72596259,0.00015462,2]
[408684048,1774115437974,-607.0,0.00015499,2]
[408684050,1774115437982,-1800.0,0.000155,5]
[408684051,1774115437992,-396.48,0.000155,2]
[408684052,1774115438000,-350.0,0.00015518,2]
[408684053,1774115438009,-350.0,0.00015547,2]
[408684054,1774115438019,-587.0,0.00015558,2]
[408684055,1774115438028,-3772.44523579,0.0001556,2]
[408684056,1774115438036,-180.0,0.0001556,2]
[408684057,1774115438045,-3945.19153564,0.00015562,2]
[408684058,1774115438054,-300.0,0.000156,5]
[408684059,1774115438064,-2351.0,0.00015651,2]
[408684060,1774115438072,-929.0,0.00015676,2]
[408684061,1774115438083,-160.0,0.0001568,7]
[408684062,1774115438092,-160.0,0.0001568,7]
[408684063,1774115438101,-290.537688,0.0001568,7]
[408684064,1774115438111,-3532.0,0.000157,2]
[408684065,1774115438120,-300.0,0.000157,5]
[408684066,1774115438129,-362.09636652,0.00015708,2]
[408684067,1774115438138,-304.696003,0.00015743,2]
[408684068,1774115438148,-607.0,0.00015762,2]
[408684069,1774115438157,-2184.362,0.00015785,2]
[408684071,1774115438166,-2000.0,0.000158,2]
[408684073,1774115438176,-300.0,0.000158,5]
[408684075,1774115438185,-500.0,0.00015871,2]
[408684077,1774115438194,-500.0,0.00015872,2]
[408684079,1774115438203,-317.79,0.000159,2]
[408684080,1774115438212,-1260.83,0.000159,2]
[408684081,1774115438222,-182.14375909,0.000159,2]
[408684082,1774115438232,-3945.19153564,0.000159,2]
[408684083,1774115438243,-2022.0,0.000159,2]
[408684084,1774115438253,-3772.44523579,0.000159,2]
[408684085,1774115438263,-1631.72596259,0.000159,2]
[408684086,1774115438273,-300.0,0.000159,5]
[408684087,1774115438282,-643.3197548,0.000159,2]
[408684088,1774115438293,-2676.0,0.000159,5]
[408684089,1774115438302,-2143.0,0.000159,5]
[408684090,1774115438311,-216893.6661704,0.00015914,2]
[408684091,1774115438320,-9915.9091922,0.00015914,2]
[408684092,1774115438329,-11864.3206216,0.00015914,2]
[408684093,1774115438339,-200.5648304,0.00015919,2]
[408684094,1774115438348,-445.36205913,0.00015919,2]
[408684095,1774115438357,-500.0,0.00015919,2]
[408684096,1774115438367,-315.73836054,0.00015919,2]
[408684097,1774115438379,-500.0,0.00015919,2]
[408684098,1774115438388,-500.0,0.00015919,2]
[408684099,1774115438397,-929.08705304,0.0001595,2]
[408684100,1774115438406,-500.0,0.00015973,2]
[408684101,1774115438420,-226.57620935,0.00015973,2]
[408684102,1774115438431,-500.0,0.00015973,2]
[408684103,1774115438440,-500.0,0.00015973,2]
[408684104,1774115438449,-500.0,0.00015973,2]
[408684105,1774115438458,-500.0,0.00015973,2]
[408684106,1774115438467,-500.0,0.00015973,2]
[408684108,1774115438476,-168.0,0.00015973,2]
[408684110,1774115438485,-350.0,0.00015988,3]
[408684112,1774115438495,-288.3239343,0.0001599,2]
[408684114,1774115438504,-151.0,0.00015997,2]
[408684116,1774115438514,-51438.40925168,0.00016,2]
[408684128,1774115438659,-970.44892758,0.00016,2]
[408684129,1774115438735,-3487.1,0.00016,2]
[408684130,1774115438746,-610.84628474,0.00016,2]
[408684131,1774115438758,-301.76454383,0.00016,2]
[408684132,1774115438769,-299.40483709,0.00016,2]
[408684133,1774115438779,-51807.58838252,0.00016,2]
[408684134,1774115438791,-925.48761476,0.00016,2]
[408684135,1774115440394,-460.0,0.00016,2]
[408684136,1774115440406,-2087.35561169,0.00016,2]
[408684137,1774115440604,-1162.5,0.00016,2]
[408684138,1774115440660,-1359.96143017,0.00016,2]
[408684139,1774115440672,-1786095.24434554,0.00016,2]
[408684140,1774115440681,-2431682.42922107,0.00016,2]
[408684141,1774115440692,-832185.04389629,0.00016,2]
[408684142,1774115440703,-375928.66387276,0.00016,2]
[408684143,1774115440819,-466.16,0.00016,2]
[408684159,1774115446607,-326.245492,0.0001514,7]
[408684160,1774115446616,-48.811508,0.00016,2]
[408684164,1774115468693,10000.01,0.00012836,2]
[408684165,1774115468717,10000.01,0.00012836,2]
[408684166,1774115468745,98831.2526,0.00012836,2]
[408684167,1774115492780,6215.06,7.694e-05,2]
[408684168,1774115492978,6215.06,8.099e-05,2]
[408684169,1774115493179,6215.06,8.504e-05,2]
[408684170,1774115493379,6215.06,8.909e-05,2]
[408684171,1774115493586,6215.06,9.314e-05,2]
[408684172,1774115493802,6215.06,9.719e-05,2]
[408684173,1774115493991,6215.06,0.00010124,2]
[408684174,1774115494187,6215.06,0.00010529,2]
[408684175,1774115494368,6215.06,0.00010934,2]
[408684176,1774115494566,6215.06,0.00011339,2]
[408684177,1774115494766,6215.06,0.00011744,2]
[408684178,1774115494968,6215.06,0.00012149,2]
[408684179,1774115495162,6215.06,0.00012554,2]
[408684180,1774115495714,-3784.95,0.00012959,2]
[408684181,1774115495892,-2430.11,0.00012959,2]
[408684182,1774115498761,-3784.95,0.00013364,2]
[408684183,1774115501760,-2430.11,0.00013364,2]
[408684184,1774115503006,5139.79,0.000112,5]
[408684185,1774115503028,393.21,0.000112,5]
[408684186,1774115503225,5533.0,0.000111,3]
[408684187,1774115503448,2092.0,0.00011,2]
[408684188,1774115539686,28646.3717,0.00012837,2]
[408684189,1774115559196,529969.39614755,0.00012836,2]
[408684190,1774115830821,1153.08903254,0.00012737,2]
[408684192,1774115843288,2272.18781668,0.00012737,2]
[408684196,1774115969304,228.20571621,0.00012817,2]
[408684197,1774115978487,-4466.91627566,0.00012826,2]
[408684198,1774115984384,-2371.89467332,0.00012826,2]
[408684199,1774115984408,-256.22065336,0.00012826,2]
[408684206,1774116093176,2317.899,0.00012579,2]
[408684207,1774116093213,216.609,0.00012579,2]
[408684208,1774116094770,150.0,0.00013887,120]
[408684210,1774116117126,3684.0,0.000109,5]
[408684214,1774116217046,1037.78012925,0.00012737,2]
[408684216,1774116263616,2044.96903503,0.00012737,2]
[408684218,1774116289253,182.03123454,0.00012737,2]
[408684221,1774116360776,220.99154744,0.00012737,2]
[408684224,1774116438121,-228.94153305,0.00012827,2]
[408684225,1774116446086,-314.20437959,0.00012827,2]
[408684229,1774116567099,-656.85408736,0.00012827,2]
[408684230,1774116567128,-150.0,0.00012827,2]
[408684231,1774116567152,-173.14591264,0.00012827,2]
[408684232,1774116567181,-126.85408736,0.00012827,2]
[408684233,1774116567203,-250.0,0.00012828,2]
[408684234,1774116567224,-500.0,0.00012828,2]
[408684235,1774116567250,-366.76591264,0.00012828,2]
[408684236,1774116571077,-133.23408736,0.00012828,2]
[408684237,1774116571097,-500.0,0.00012828,2]
[408684238,1774116571120,-637.13609573,0.00012828,2]
[408684239,1774116571140,-200.0,0.00012828,2]
[408684240,1774116571161,-151.0,0.00012828,2]
[408684241,1774116571183,-151.0,0.00012828,2]
[408684242,1774116571203,-151.0,0.00012828,2]
[408684243,1774116571225,-151.0,0.00012828,2]
[408684244,1774116571248,-151.0,0.00012828,2]
[408684245,1774116571270,-151.0,0.00012828,2]
[408684246,1774116571289,-151.0,0.00012828,2]
[408684247,1774116571308,-151.0,0.00012828,2]
[408684248,1774116571327,-151.0,0.00012828,2]
[408684249,1774116571347,-151.0,0.00012828,2]
[408684250,1774116571367,-151.0,0.00012828,2]
[408684251,1774116571387,-151.0,0.00012828,2]
[408684252,1774116571407,-151.0,0.00012828,2]
[408684253,1774116571433,-151.0,0.00012828,2]
[408684254,1774116571458,-151.0,0.00012828,2]
[408684255,1774116571479,-151.0,0.00012828,2]
[408684256,1774116571500,-151.0,0.00012828,2]
[408684257,1774116571520,-151.0,0.00012828,2]
[408684258,1774116571540,-151.0,0.00012828,2]
[408684259,1774116571560,-151.0,0.00012828,2]
[408684260,1774116571580,-151.0,0.00012828,2]
[408684261,1774116571822,-151.0,0.00012828,2]
[408684262,1774116571847,-151.0,0.00012828,2]
[408684263,1774116571867,-151.0,0.00012828,2]
[408684264,1774116571887,-151.0,0.00012828,2]
[408684265,1774116571908,-226.43805041,0.00012828,2]
[408684266,1774116571927,-500.0,0.0001283,2]
[408684267,1774116571950,-500.0,0.0001283,2]
[408684268,1774116571969,-500.0,0.0001283,2]
[408684269,1774116571990,-500.0,0.0001283,2]
[408684270,1774116572009,-500.0,0.0001283,2]
[408684271,1774116572030,-500.0,0.0001283,2]
[408684272,1774116572050,-500.0,0.0001283,2]
[408684273,1774116572070,-500.0,0.0001283,2]
[408684274,1774116572090,-213.60668859,0.0001283,2]
[408684275,1774116572113,-255.0,0.0001283,2]
[408684276,1774116572132,-152.96986947,0.00012835,2]
[408684277,1774116572152,-1000.0,0.00012835,2]
[408684278,1774116572177,-311.75344139,0.00012835,2]
[408684279,1774116572197,-500.0,0.00012835,2]
[408684280,1774116572216,-500.0,0.00012835,2]
[408684281,1774116572235,-361.62461027,0.00012835,2]
[408684282,1774116572255,-500.0,0.00012835,2]
[408684283,1774116572274,-271.01685237,0.00012835,2]
[408684284,1774116572294,-500.0,0.00012835,2]
[408684285,1774116572313,-500.0,0.00012835,2]
[408684286,1774116572333,-500.0,0.00012835,2]
[408684287,1774116572352,-180.78497574,0.00012835,2]
[408684288,1774116572377,-220.65319568,0.00012835,2]
[408684289,1774116572399,-500.0,0.00012835,2]
[408684290,1774116572421,-291.31315243,0.00012835,2]
[408684292,1774116601480,1200.0,0.00012834,2]
[408684293,1774116602548,-208.68684757,0.00012835,2]
[408684294,1774116602577,-500.0,0.00012835,2]
[408684295,1774116602609,-165.00403949,0.00012835,2]
[408684296,1774116602640,-500.0,0.00012835,2]
[408684297,1774116602667,-500.0,0.00012835,2]
[408684298,1774116602697,-500.0,0.00012835,2]
[408684299,1774116602867,-500.0,0.00012835,2]
[408684300,1774116602897,-500.0,0.00012835,2]
[408684301,1774116602933,-500.0,0.00012835,2]
[408684302,1774116602962,-500.0,0.00012835,2]
[408684303,1774116602992,-500.0,0.00012835,2]
[408684304,1774116603272,934.00211637,0.00012737,2]
[408684305,1774116605413,-500.0,0.00012835,2]
[408684306,1774116605445,-500.0,0.00012835,2]
[408684307,1774116605475,-500.0,0.00012835,2]
[408684308,1774116605506,-500.0,0.00012835,2]
[408684309,1774116605535,-500.0,0.00012835,2]
[408684310,1774116608467,-500.0,0.00012835,2]
[408684311,1774116608496,-500.0,0.00012835,2]
[408684312,1774116608525,-500.0,0.00012835,2]
[408684313,1774116608556,-500.0,0.00012835,2]
[408684314,1774116608588,-500.0,0.00012835,2]
[408684315,1774116611426,-500.0,0.00012835,2]
[408684316,1774116611455,-193.76250543,0.00012835,2]
[408684317,1774116611484,-300.0,0.00012835,2]
[408684318,1774116611512,-300.0,0.00012835,2]
[408684319,1774116611541,-223.19132808,0.00012835,2]
[408684320,1774116611571,-150.0,0.00012835,2]
[408684321,1774116611600,-500.0,0.00012835,2]
[408684322,1774116611627,-285.99746867,0.00012835,2]
[408684323,1774116611718,-94.10739564,0.00012835,2]
[408684324,1774116611745,-500.0,0.00012835,2]
[408684325,1774116611773,-300.0,0.00012835,2]
[408684326,1774116611801,-317.9488652,0.00012835,2]
[408684327,1774116611833,-249.23442175,0.00012835,2]
[408684328,1774116611955,192.21595619,0.00012826,2]
[408684330,1774116631393,-474.12914604,0.00012836,2]
[408684331,1774116631458,-868268.80779462,0.00012836,2]
[408684332,1774116631484,-1661.0195608,0.00012836,2]
[408684333,1774116631506,-376.36,0.00012836,2]
[408684357,1774116637477,-822.83,0.00012836,2]
[408684358,1774116637531,-695.9,0.00012836,2]
[408684359,1774116637641,-3487.1,0.00012836,2]
[408684582,1774116639890,-530911.48745099,0.00012836,2]
[408684584,1774116639900,-22903.57,0.00012837,2]
[408684586,1774116639909,-299.99,0.00012837,2]
[408684588,1774116639919,-150.99,0.00012837,2]
[408684590,1774116639928,-9999.99,0.00012837,2]
[408684592,1774116639937,-9999.99,0.00012837,2]
[408684594,1774116639946,-999.99,0.00012837,2]
[408684596,1774116639955,-9467.71,0.00012837,2]
[408684598,1774116639964,-1835.1711,0.00012837,2]
[408684600,1774116639973,-8914.1985,0.00012837,2]
[408684602,1774116639983,-934.00211632,0.00013088,2]
[408684604,1774116639992,-246.19564492,0.00013364,2]
[408684606,1774116640001,-278.73969079,0.00013364,2]
[408684608,1774116640010,-200.0,0.00013376,2]
[408684610,1774116640019,-49093.27594681,0.00013389,2]
[408684612,1774116640028,-500.52,0.00013398,2]
[408684614,1774116640037,-934.00211632,0.0001344,2]
[408684616,1774116640047,-1600.0,0.00013688,2]
[408684618,1774116640056,-16349.37,0.00013734,2]
[408684620,1774116640065,-6215.06,0.00013769,2]
[408684622,1774116640075,-2000.0,0.0001377,2]
[408684624,1774116640084,-934.00211632,0.00013791,2]
[408684626,1774116640094,-254.23,0.000138,2]
[408684628,1774116640103,-882.58,0.000138,2]
[408684630,1774116640116,-627.33,0.000138,2]
[408684632,1774116640126,-1007.92,0.000138,2]
[408684634,1774116640135,-1500.0,0.00013885,2]
[408684636,1774116640144,-150.0,0.00013887,2]
[408684638,1774116640154,-200.0,0.00013924,2]
[408684640,1774116640163,-255.0,0.0001393,2]
[408684642,1774116640173,-500.0,0.00013985,2]
[408684644,1774116640182,-46728.96,0.00014016,2]
[408684646,1774116640194,-1886.03,0.00014017,2]
[408684648,1774116640202,-3240.0,0.00014033,2]
[408684650,1774116640212,-300.0,0.0001407,2]
[408684652,1774116640221,-640.0721222,0.00014073,2]
[408684654,1774116640230,-262.59,0.00014105,2]
[408684656,1774116640239,-500.0,0.0001411,2]
[408684658,1774116640248,-250.0,0.0001411,2]
[408684660,1774116640258,-250.0,0.0001411,2]
[408684662,1774116640267,-1680.0,0.00014117,2]
[408684664,1774116640277,-250.0,0.00014118,2]
[408684666,1774116640286,-934.00211632,0.00014143,2]
[408684668,1774116640295,-6215.06,0.00014174,2]
[408684670,1774116640304,-1376.33,0.00014292,2]
[408684672,1774116640314,-328.38,0.00014413,2]
[408684674,1774116640323,-1000.0,0.00014417,2]
[408684676,1774116640333,-155.1,0.00014466,2]
[408684678,1774116640342,-500.0,0.00014485,2]
[408684680,1774116640352,-500.0,0.00014485,2]
[408684682,1774116640361,-500.0,0.00014485,2]
[408684684,1774116640370,-500.0,0.00014485,2]
[408684686,1774116640379,-500.0,0.00014485,2]
[408684688,1774116640388,-500.0,0.00014485,2]
[408684690,1774116640399,-500.0,0.00014485,2]
[408684692,1774116640408,-500.0,0.00014485,2]
[408684694,1774116640417,-500.0,0.00014485,2]
[408684696,1774116640426,-500.0,0.00014485,2]
[408684698,1774116640435,-500.0,0.00014485,2]
[408684700,1774116640443,-500.0,0.00014485,2]
[408684702,1774116640454,-934.00211632,0.00014494,2]
[408684704,1774116640462,-660.73335974,0.00014498,2]
[408684706,1774116640472,-10000.0,0.00014539,2]
[408684708,1774116640481,-6215.06,0.00014578,2]
[408684710,1774116640490,-500.0,0.0001463,2]
[408684712,1774116640499,-1370.0,0.00014842,5]
[408684714,1774116640508,-934.00211632,0.00014846,2]
[408684716,1774116640517,-311.4,0.00014879,2]
[408684718,1774116640525,-262.59,0.00014889,2]
[408684720,1774116640535,-6215.06,0.00014983,2]
[408684722,1774116640544,-250.0,0.00015,2]
[408684724,1774116640553,-5364.46,0.00015053,2]
[408684726,1774116640562,-433.0,0.00015123,2]
[408684728,1774116640571,-934.00211632,0.00015197,2]
[408684730,1774116640580,-6215.06,0.00015388,2]
[408684732,1774116640589,-1600.0,0.00015399,2]
[408684734,1774116640598,-150.0,0.00015438,2]
[408684736,1774116640607,-2000.0,0.00015491,2]
[408684738,1774116640617,-4000.0,0.00015507,2]
[408684740,1774116640626,-400.0,0.00015525,2]
[408684742,1774116640636,-2351.0,0.00015529,2]
[408684744,1774116640644,-350.0,0.00015547,2]
[408684746,1774116640654,-350.0,0.00015554,2]
[408684748,1774116640663,-350.0,0.00015616,2]
[408684750,1774116640672,-400.0,0.00015649,2]
[408684752,1774116640681,-262.59,0.00015673,2]
[408684754,1774116640690,-926.566,0.00015674,2]
[408684756,1774116640700,-1215.0,0.00015674,2]
[408684758,1774116640709,-2403.0,0.0001568,2]
[408684760,1774116640718,-351.601477,0.0001568,7]